fUST/lending_fUST_20241015
["ID","MTS","AMOUNT","RATE_DAILY","PERIOD"]
[340271746,1728982244033,-151.0,0.0002999,7]
[340271748,1728982244043,-151.0,0.0002999,7]
[340271750,1728982244054,-151.0,0.0002999,7]
[340271752,1728982244063,-765.217599,0.0002999,7]
[340271754,1728982244073,-765.217599,0.0002999,7]
[340271756,1728982244082,-151.0,0.0002999,7]
[340271758,1728982244092,-284.647061,0.0002999,7]
[340271760,1728982244103,-156.463318,0.0002999,7]
[340271762,1728982244113,-151.0,0.0002999,7]
[340271764,1728982244123,-156.463318,0.0002999,7]
[340271766,1728982244134,-151.0,0.0002999,7]
[340271768,1728982244144,-151.0,0.0002999,7]
[340271770,1728982244154,-151.0,0.0002999,7]
[340271772,1728982244164,-151.0,0.0002999,7]
[340271774,1728982244173,-151.0,0.0002999,7]
[340271776,1728982244183,-500.0,0.0002999,10]
[340271778,1728982244192,-500.0,0.0002999,10]
[340271780,1728982244202,-500.0,0.0002999,10]
[340271782,1728982244211,-500.0,0.0002999,10]
[340271784,1728982244220,-500.0,0.0002999,10]
[340271786,1728982244229,-500.0,0.0002999,10]
[340271788,1728982244239,-500.0,0.0002999,10]
[340271790,1728982244248,-500.0,0.0002999,10]
[340271792,1728982244258,-500.0,0.0002999,10]
[340271794,1728982244267,-500.0,0.0002999,10]
[340271796,1728982244277,-500.0,0.0002999,10]
[340271798,1728982244290,-800.0,0.0002999,10]
[340271800,1728982244300,-500.0,0.0002999,10]
[340271802,1728982244310,-500.0,0.0002999,10]
[340271804,1728982244322,-500.0,0.0002999,10]
[340271806,1728982244332,-500.0,0.0002999,10]
[340271809,1728982244343,-288.8334,0.0003,10]
[340271811,1728982244353,-151.0,0.0003,7]
[340271813,1728982244364,-153.716975,0.0003,7]
[340271815,1728982244374,-151.0,0.0003,7]
[340271817,1728982244384,-150.0,0.0003,17]
[340271819,1728982244396,-151.0,0.0003,7]
[340271821,1728982244406,-151.0,0.0003,7]
[340271823,1728982244415,-765.217599,0.0003,7]
[340271825,1728982244424,-765.217599,0.0003,7]
[340271827,1728982244434,-151.0,0.0003,7]
[340271829,1728982244443,-500.0,0.0003,2]
[340271831,1728982244453,-150.0,0.00030051,2]
[340271833,1728982244462,-524.0,0.00030051,2]
[340271835,1728982244471,-1806.0,0.00030051,2]
[340271837,1728982244480,-1155.0,0.00030051,2]
[340271838,1728982244490,-156.463318,0.00030051,7]
[340271839,1728982244499,-210.167206,0.00030051,7]
[340271840,1728982244507,-156.463318,0.00030051,7]
[340271841,1728982244517,-151.0,0.00030051,7]
[340271842,1728982244526,-151.0,0.00030051,7]
[340271843,1728982244535,-151.0,0.00030051,7]
[340271844,1728982244546,-257.740861,0.00030051,7]
[340271845,1728982244555,-151.0,0.00030051,7]
[340271846,1728982244565,-302.60665372,0.0003016,2]
[340271847,1728982244576,-1500.0,0.00030178,2]
[340271848,1728982244586,-160.44,0.00030419,2]
[340271849,1728982244597,-160.44,0.00030419,2]
[340271850,1728982244608,-160.44,0.00030419,2]
[340271851,1728982244619,-160.44,0.00030419,2]
[340271852,1728982244630,-156.463318,0.00030419,7]
[340271853,1728982244641,-156.463318,0.00030419,7]
[340271854,1728982244651,-151.0,0.00030419,7]
[340271855,1728982244660,-151.0,0.00030419,7]
[340271856,1728982244670,-151.0,0.00030419,7]
[340271857,1728982244682,-151.0,0.00030419,7]
[340271858,1728982244692,-37690.65820382,0.0003042,4]
[340271861,1728982246257,-1597.37,0.0002749,10]
[340271862,1728982246267,-352.943722,0.00029941,7]
[340271863,1728982246279,-352.943722,0.0002999,7]
[340271864,1728982246293,-352.943722,0.00030051,7]
[340271865,1728982246304,-352.943722,0.00030419,7]
[340271866,1728982246313,-9213.12156558,0.0003042,4]
[340271867,1728982246370,-2058.53135892,0.0003042,4]
[340271945,1728983438496,-1500.0,0.000268,2]
[340271946,1728983438506,-165.86909,0.0002842,2]
[340271947,1728983438516,-24900.0,0.00029326,2]
[340271948,1728983438526,-1500.0,0.00029333,2]
[340271949,1728983438536,-162.76,0.000298,31]
[340271950,1728983438546,-150.0,0.0003,2]
[340271951,1728983438556,-150.0,0.000304,17]
[340271952,1728983438566,-1697.4616055,0.00030418,2]
[340271953,1728983438576,-275.81465514,0.00030418,7]
[340271954,1728983438585,-1225.93997979,0.00030493,2]
[340271955,1728983438596,-676.591,0.00030593,2]
[340271956,1728983438605,-150.0,0.000314,19]
[340271957,1728983438616,-162.482,0.0003161,29]
[340271958,1728983438626,-156.0,0.0003171,2]
[340271959,1728983438636,-1500.0,0.00031867,2]
[340271960,1728983438645,-152.252325,0.0003199,7]
[340271961,1728983438655,-151.0,0.0003199,7]
[340271962,1728983438664,-151.0,0.0003199,7]
[340271963,1728983438675,-151.0,0.0003199,7]
[340271964,1728983438685,-153.875428,0.0003199,7]
[340271965,1728983438792,-500.0,0.00032,30]
[340271966,1728983438803,-800.0,0.00032,30]
[340271967,1728983438814,-800.0,0.00032,30]
[340271968,1728983438824,-800.0,0.00032,30]
[340271969,1728983438835,-800.0,0.00032,30]
[340271970,1728983438844,-800.0,0.00032,30]
[340271971,1728983438853,-800.0,0.00032,30]
[340271972,1728983438862,-800.0,0.00032,30]
[340271973,1728983438874,-800.0,0.00032,30]
[340271974,1728983438884,-800.0,0.00032,30]
[340271975,1728983438894,-500.0,0.00032,30]
[340271976,1728983438903,-800.0,0.00032,30]
[340271977,1728983438912,-500.0,0.00032,30]
[340271978,1728983438924,-800.0,0.00032,30]
[340271979,1728983438934,-509.38880314,0.00032,30]
[340271980,1728983438944,-500.0,0.00032,30]
[340271981,1728983438954,-800.0,0.00032,30]
[340271982,1728983438964,-500.0,0.00032,30]
[340271983,1728983438974,-1000.0,0.00032,30]
[340271984,1728983438984,-500.0,0.00032,30]
[340271985,1728983438994,-500.0,0.00032,30]
[340271986,1728983439003,-500.0,0.00032,30]
[340271987,1728983439013,-150.0,0.000324,20]
[340271988,1728983439023,-221.46148612,0.00032877,2]
[340271989,1728983439033,-150.0,0.000334,22]
[340271990,1728983439043,-300.0,0.000339,31]
[340271991,1728983439052,-250.0,0.00034,14]
[340271992,1728983439062,-251.48193905,0.00034,7]
[340271993,1728983439072,-162.76,0.00034,31]
[340271994,1728983439081,-162.76,0.00034,31]
[340271995,1728983439091,-756.51663429,0.00034039,8]
[340271996,1728983439100,-472.51654589,0.00034039,8]
[340271997,1728983439109,-151.0,0.00034087,14]
[340271998,1728983439119,-151.0,0.00034087,14]
[340271999,1728983439128,-1225.93997979,0.00034244,2]
[340272000,1728983439139,-756.51663429,0.0003438,8]
[340272001,1728983439148,-3779.73190163,0.000344,2]
[340272002,1728983439158,-151.0,0.000344,14]
[340272003,1728983439169,-1500.0,0.000344,2]
[340272004,1728983439181,-150.0,0.000344,23]
[340272005,1728983439191,-756.51663429,0.0003472,8]
[340272006,1728983439201,-782.187,0.00034795,120]
[340272007,1728983439213,-150.112233,0.000348,10]
[340272008,1728983439223,-1111.0,0.00034849,120]
[340272009,1728983439233,-5129.90674924,0.000349,2]
[340272010,1728983439244,-2000.0,0.00035,52]
[340272011,1728983439255,-496.83246907,0.00035,7]
[340272012,1728983439266,-319.0,0.00035,7]
[340272013,1728983439276,-252.58,0.00035,30]
[340272014,1728983439286,-207.17,0.00035,60]
[340272015,1728983439297,-907.81996115,0.00035061,10]
[340272016,1728983439307,-150.112233,0.000354,9]
[340272017,1728983439317,-150.0,0.000354,25]
[340272018,1728983439327,-605.59107462,0.00035401,10]
[340272019,1728983439338,-154.620576,0.0003542,14]
[340272020,1728983439347,-151.0,0.0003542,14]
[340272021,1728983439358,-161.686253,0.0003542,14]
[340272022,1728983439369,-500.0,0.00035715,5]
[340272023,1728983439379,-248.0,0.0003589,2]
[340272024,1728983439389,-1000.0,0.000359,2]
[340272025,1728983439398,-2466.7,0.00036,75]
[340272026,1728983439408,-248.0,0.00036,2]
[340272027,1728983439418,-283.702577,0.00036,14]
[340272028,1728983439429,-151.0,0.00036,14]
[340272029,1728983439439,-153.356296,0.00036,14]
[340272030,1728983439448,-152.870771,0.00036,14]
[340272031,1728983439458,-151.0,0.00036,14]
[340272032,1728983439467,-150.112233,0.000362,8]
[340272033,1728983439477,-150.0,0.000364,26]
[340272034,1728983439487,-156.0,0.0003654,7]
[340272035,1728983439498,-150.112233,0.000366,6]
[340272036,1728983439508,-151.0,0.0003672,14]
[340272037,1728983439518,-151.0,0.0003672,14]
[340272038,1728983439528,-151.0,0.0003672,14]
[340272039,1728983439538,-151.0,0.0003672,14]
[340272040,1728983439548,-151.0,0.0003672,14]
[340272041,1728983439558,-151.0,0.0003672,14]
[340272042,1728983439568,-151.0,0.0003672,14]
[340272043,1728983439580,-151.0,0.0003672,14]
[340272044,1728983439590,-282.354977,0.0003672,14]
[340272045,1728983439601,-156.581314,0.0003672,14]
[340272046,1728983439611,-282.354977,0.0003672,14]
[340272047,1728983439620,-2237.534429,0.0003672,14]
[340272048,1728983439630,-2237.534429,0.0003672,14]
[340272049,1728983439640,-179.943397,0.0003672,14]
[340272050,1728983439651,-151.0,0.0003672,14]
[340272051,1728983439662,-179.943397,0.0003672,14]
[340272052,1728983439675,-155.24905,0.0003672,14]
[340272053,1728983439686,-473.468629,0.0003672,14]
[340272054,1728983439700,-473.468629,0.0003672,14]
[340272055,1728983439711,-535.652319,0.0003672,14]
[340272056,1728983439720,-535.652319,0.0003672,14]
[340272057,1728983439731,-151.0,0.0003672,14]
[340272058,1728983439741,-151.0,0.0003672,14]
[340272059,1728983439751,-190.892569,0.0003672,14]
[340272060,1728983439760,-151.0,0.0003672,14]
[340272061,1728983439772,-151.0,0.0003673,14]
[340272062,1728983439782,-151.0,0.0003673,14]
[340272063,1728983439792,-151.0,0.0003673,14]
[340272064,1728983439802,-151.0,0.0003673,14]
[340272065,1728983439813,-236.450544,0.0003673,14]
[340272066,1728983439823,-151.0,0.0003673,14]
[340272067,1728983439835,-163.96048328,0.00036822,2]
[340272068,1728983439845,-641.95,0.0003685,10]
[340272069,1728983439854,-1224.15,0.0003685,10]
[340272071,1728983439863,-151.0,0.0003686,14]
[340272072,1728983439873,-151.688116,0.0003686,14]
[340272073,1728983439883,-245.337956,0.0003686,14]
[340272074,1728983439893,-154.885789,0.0003686,14]
[340272075,1728983439903,-154.885789,0.0003686,14]
[340272076,1728983439914,-151.0,0.0003686,14]
[340272077,1728983439924,-151.0,0.0003686,14]
[340272078,1728983439933,-19043.5464801,0.0003686,5]
[340272079,1728983439943,-41661.74371992,0.0003686,5]
[340272080,1728983439965,-514.00866747,0.0003686,5]
[340272091,1728983440463,-2703.01236383,0.0003686,5]
[340274888,1728983713171,199.0,0.0002,10]
[340274890,1728984158632,4400.0,0.0002,2]
[340274895,1728984406720,21753.77,0.00024,2]
[340275202,1728984643765,-1500.0,0.000268,2]
[340275203,1728984643775,-500.0,0.00027,2]
[340275204,1728984643786,-500.0,0.000275,2]
[340275205,1728984643795,-500.0,0.00028,2]
[340275206,1728984643805,-500.0,0.00029,2]
[340275207,1728984643814,-500.0,0.00029,2]
[340275208,1728984643823,-500.0,0.00029,2]
[340275209,1728984643833,-500.0,0.00029,2]
[340275210,1728984643842,-500.0,0.00029,2]
[340275211,1728984643851,-500.0,0.00029,2]
[340275212,1728984643861,-500.0,0.00029,2]
[340275213,1728984643872,-900.0,0.00029,2]
[340275215,1728984643881,-500.0,0.00029,2]
[340275217,1728984643890,-500.0,0.0003,2]
[340275219,1728984643900,-919.45498486,0.0003145,2]
[340275222,1728984643909,-230.0,0.00031523,2]
[340275224,1728984643918,-1134.03698438,0.00031523,2]
[340275231,1728985098781,150.0,0.0002,2]
[340275259,1728985838018,-160.2094101,0.00027934,2]
[340275260,1728985838029,-111.61746809,0.00027971,2]
[340275261,1728985838041,-188.38253191,0.00027971,2]
[340275262,1728985838050,-300.0,0.00027971,2]
[340275263,1728985838060,-1511.61746809,0.00027972,20]
[340275307,1728985990742,1936.56222503,0.00027,60]
[340275308,1728986390335,-433.23702549,0.00034849,120]
[340275309,1728986390362,-215.62594902,0.00036,120]
[340275310,1728986417172,155.0,0.00034849,120]
[340275311,1728986421735,155.0,0.00034849,120]
[340275312,1728986426507,123.23702549,0.00034849,120]
[340275349,1728987031955,-300.0,0.00024971,2]
[340275350,1728987031967,-300.0,0.00024971,2]
[340275351,1728987031978,-24900.0,0.00024972,2]
[340275352,1728987031990,-1029.0058386,0.00025069,2]
[340275353,1728987032000,-166.626986,0.00025566,2]
[340275354,1728987032010,-166.626986,0.00025655,2]
[340275355,1728987032020,-166.626986,0.00025744,2]
[340275356,1728987032031,-166.626986,0.00025832,2]
[340275357,1728987032041,-166.6666666,0.00025844,2]
[340275358,1728987032051,-975.57457074,0.00025846,2]
[340275359,1728987032061,-166.626986,0.00025921,2]
[340275360,1728987032071,-166.626986,0.0002601,2]
[340275361,1728987032081,-166.626986,0.00026099,2]
[340275362,1728987032091,-166.626986,0.00026188,2]
[340275363,1728987032100,-166.626986,0.00026277,2]
[340275364,1728987032110,-166.626986,0.00026365,2]
[340275365,1728987032119,-267.710457,0.00026428,2]
[340275366,1728987032129,-166.626986,0.00026454,2]
[340275367,1728987032242,-1564.0943221,0.00026532,2]
[340275368,1728987032253,-183.87643676,0.00026532,2]
[340275369,1728987032263,-166.626986,0.00026543,2]
[340275370,1728987032273,-166.626986,0.00026632,2]
[340275371,1728987032284,-166.626986,0.00026721,2]
[340275372,1728987032293,-166.626986,0.00026809,2]
[340275373,1728987032302,-166.626986,0.00026898,2]
[340275374,1728987032314,-500.0,0.00027,2]
[340275375,1728987032324,-420.0,0.00027052,2]
[340275376,1728987032334,-300.0,0.00027468,2]
[340275377,1728987032344,-5353.5060046,0.00027734,2]
[340275378,1728987032354,-151.0,0.00027972,7]
[340275379,1728987032364,-151.0,0.00027972,7]
[340275380,1728987032373,-151.00000084,0.00027972,7]
[340275381,1728987032383,-500.0,0.00028,2]
[340275382,1728987032392,-156.0,0.000287,2]
[340275383,1728987032402,-500.0,0.00029,2]
[340275384,1728987032413,-496.0,0.00029308,2]
[340275385,1728987032423,-150.0,0.0003,7]
[340275386,1728987032434,-500.0,0.0003,2]
[340275387,1728987032445,-1564.09432209,0.00030849,2]
[340275388,1728987032456,-500.0,0.00031129,5]
[340275389,1728987032468,-500.0,0.00031209,2]
[340275390,1728987032478,-244.82,0.00031267,3]
[340275391,1728987032488,-151.0,0.00031267,7]
[340275392,1728987032498,-152.008468,0.00031267,7]
[340275393,1728987032507,-151.0,0.00031267,7]
[340275394,1728987032519,-151.0,0.00031267,7]
[340275395,1728987032529,-154.025126,0.00031267,7]
[340275396,1728987032540,-151.0,0.00031267,7]
[340275397,1728987032551,-151.0,0.00031267,7]
[340275398,1728987032562,-151.0,0.00031271,7]
[340275399,1728987032572,-225.623421,0.00031271,7]
[340275400,1728987032583,-274.55175,0.00031271,7]
[340275401,1728987032592,-151.171294,0.00031271,7]
[340275402,1728987032602,-154.348241,0.00031271,7]
[340275403,1728987032612,-151.0,0.00031271,7]
[340275404,1728987032621,-180.795581,0.00031271,7]
[340275405,1728987032631,-180.795581,0.00031271,7]
[340275406,1728987032641,-154.001388,0.00031271,7]
[340275407,1728987032650,-151.0,0.00031271,7]
[340275408,1728987032660,-152.583694,0.00031271,7]
[340275409,1728987032671,-151.0,0.00031271,7]
[340275410,1728987032681,-229.455881,0.00031271,7]
[340275411,1728987032693,-648.832557,0.00031271,7]
[340275412,1728987032702,-648.832557,0.00031271,7]
[340275413,1728987032712,-2050.236124,0.00031271,7]
[340275414,1728987032723,-2050.236124,0.00031271,7]
[340275415,1728987032733,-151.0,0.00031271,7]
[340275416,1728987032743,-155.728875,0.00031275,7]
[340275417,1728987032752,-151.0,0.00031275,7]
[340275418,1728987032762,-156.775471,0.00031275,7]
[340275419,1728987032772,-151.0,0.00031275,7]
[340275420,1728987032781,-228.286488,0.00031275,7]
[340275421,1728987032791,-151.0,0.00031275,7]
[340275422,1728987032800,-154.49721,0.00031275,7]
[340275423,1728987032809,-154.49721,0.00031275,7]
[340275424,1728987032819,-151.0,0.00031275,7]
[340275425,1728987032830,-151.0,0.00031275,7]
[340275426,1728987032840,-151.0,0.00031275,7]
[340275427,1728987032852,-151.0,0.00031275,7]
[340275428,1728987032862,-151.0,0.00031275,7]
[340275429,1728987032872,-151.0,0.00031275,7]
[340275430,1728987032884,-151.0,0.00031275,7]
[340275431,1728987032894,-154.492928,0.00031275,7]
[340275432,1728987032904,-151.0,0.00031275,7]
[340275433,1728987032915,-151.0,0.00031275,7]
[340275434,1728987032925,-177.049057,0.00031275,7]
[340275435,1728987032936,-177.049057,0.00031275,7]
[340275436,1728987032945,-576.64666,0.00031275,7]
[340275437,1728987032954,-576.64666,0.00031275,7]
[340275438,1728987032965,-151.0,0.00031275,7]
[340275439,1728987032977,-151.0,0.00031276,7]
[340275440,1728987032986,-151.0,0.00031276,7]
[340275441,1728987032996,-151.0,0.00031276,7]
[340275442,1728987033006,-151.0,0.00031276,7]
[340275443,1728987033015,-228.286488,0.00031276,7]
[340275444,1728987033025,-228.286488,0.00031276,7]
[340275445,1728987033034,-151.0,0.00031276,7]
[340275446,1728987033044,-180.795581,0.00031276,7]
[340275447,1728987033054,-180.795581,0.00031276,7]
[340275448,1728987033064,-151.0,0.00031276,7]
[340275449,1728987033073,-154.49721,0.00031276,7]
[340275450,1728987033083,-154.49721,0.00031276,7]
[340275451,1728987033092,-151.0,0.00031276,7]
[340275452,1728987033102,-151.0,0.00031276,7]
[340275453,1728987033112,-648.832557,0.00031276,7]
[340275454,1728987033122,-648.832557,0.00031276,7]
[340275455,1728987033133,-151.0,0.00031276,7]
[340275456,1728987033143,-151.0,0.00031276,7]
[340275457,1728987033154,-151.0,0.00031276,7]
[340275458,1728987033164,-151.0,0.00031276,7]
[340275459,1728987033174,-2050.236124,0.00031276,7]
[340275460,1728987033184,-151.0,0.00031276,7]
[340275461,1728987033193,-151.0,0.00031276,7]
[340275462,1728987033203,-2050.236124,0.00031276,7]
[340275463,1728987033213,-177.049057,0.00031276,7]
[340275464,1728987033224,-177.049057,0.00031276,7]
[340275465,1728987033234,-576.64666,0.00031276,7]
[340275466,1728987033244,-151.0,0.00031276,7]
[340275467,1728987033254,-576.64666,0.00031276,7]
[340275468,1728987033265,-151.0,0.00031276,7]
[340275469,1728987033274,-151.0,0.00031276,7]
[340275470,1728987033284,-151.0,0.00031276,7]
[340275471,1728987033294,-153.774976,0.00031276,7]
[340275472,1728987033304,-151.0,0.00031276,7]
[340275473,1728987033314,-151.0,0.00031276,7]
[340275474,1728987033326,-261.66948,0.00031276,7]
[340275475,1728987033336,-261.66948,0.00031276,7]
[340275476,1728987033345,-151.0,0.00031276,7]
[340275477,1728987033355,-151.0,0.00031276,7]
[340275478,1728987033366,-151.0,0.00031277,7]
[340275479,1728987033376,-151.0,0.00031277,7]
[340275480,1728987033386,-173.926946,0.00031277,7]
[340275481,1728987033396,-151.0,0.00031277,7]
[340275482,1728987033407,-151.0,0.00031277,7]
[340275483,1728987033416,-151.0,0.00031277,7]
[340275484,1728987033426,-151.0,0.00031277,7]
[340275485,1728987033437,-228.286488,0.00031277,7]
[340275486,1728987033448,-228.286488,0.00031277,7]
[340275487,1728987033459,-228.286488,0.00031277,7]
[340275488,1728987033468,-228.286488,0.00031277,7]
[340275489,1728987033482,-151.0,0.00031277,7]
[340275490,1728987033492,-151.0,0.00031277,7]
[340275491,1728987033503,-180.795581,0.00031277,7]
[340275492,1728987033515,-180.795581,0.00031277,7]
[340275493,1728987033525,-180.795581,0.00031277,7]
[340275494,1728987033534,-180.795581,0.00031277,7]
[340275495,1728987033545,-180.795581,0.00031277,7]
[340275496,1728987033554,-180.795581,0.00031277,7]
[340275497,1728987033564,-151.0,0.00031277,7]
[340275498,1728987033574,-154.49721,0.00031277,7]
[340275499,1728987033584,-154.49721,0.00031277,7]
[340275500,1728987033593,-154.49721,0.00031277,7]
[340275501,1728987033603,-154.49721,0.00031277,7]
[340275502,1728987033613,-151.0,0.00031277,7]
[340275503,1728987033623,-151.0,0.00031277,7]
[340275504,1728987033634,-151.0,0.00031277,7]
[340275505,1728987033644,-151.0,0.00031277,7]
[340275506,1728987033654,-648.832557,0.00031277,7]
[340275507,1728987033664,-648.832557,0.00031277,7]
[340275508,1728987033674,-648.832557,0.00031277,7]
[340275509,1728987033684,-648.832557,0.00031277,7]
[340275510,1728987033694,-648.832557,0.00031277,7]
[340275511,1728987033704,-648.832557,0.00031277,7]
[340275512,1728987033714,-151.0,0.00031277,7]
[340275513,1728987033728,-151.0,0.00031277,7]
[340275514,1728987033738,-151.0,0.00031277,7]
[340275515,1728987033747,-151.0,0.00031277,7]
[340275516,1728987033757,-151.0,0.00031277,7]
[340275517,1728987033767,-151.0,0.00031277,7]
[340275518,1728987033777,-151.0,0.00031277,7]
[340275519,1728987033786,-2050.236124,0.00031277,7]
[340275520,1728987033796,-2050.236124,0.00031277,7]
[340275521,1728987033806,-151.0,0.00031277,7]
[340275522,1728987033817,-2050.236124,0.00031277,7]
[340275523,1728987033826,-151.0,0.00031277,7]
[340275524,1728987033836,-151.0,0.00031277,7]
[340275525,1728987033846,-2050.236124,0.00031277,7]
[340275526,1728987033859,-151.0,0.00031277,7]
[340275527,1728987033870,-2050.236124,0.00031277,7]
[340275528,1728987033880,-2050.236124,0.00031277,7]
[340275529,1728987033892,-177.049057,0.00031277,7]
[340275530,1728987033903,-177.049057,0.00031277,7]
[340275531,1728987033913,-177.049057,0.00031277,7]
[340275532,1728987033925,-177.049057,0.00031277,7]
[340275533,1728987033935,-576.64666,0.00031277,7]
[340275534,1728987033944,-576.64666,0.00031277,7]
[340275535,1728987033955,-151.0,0.00031277,7]
[340275536,1728987033965,-151.0,0.00031277,7]
[340275537,1728987033976,-151.0,0.00031277,7]
[340275538,1728987033986,-576.64666,0.00031277,7]
[340275539,1728987033997,-576.64666,0.00031277,7]
[340275540,1728987034007,-151.0,0.00031277,7]
[340275541,1728987034018,-151.0,0.00031277,7]
[340275542,1728987034029,-151.0,0.00031277,7]
[340275543,1728987034039,-151.0,0.00031277,7]
[340275544,1728987034049,-151.0,0.00031277,7]
[340275545,1728987034059,-151.0,0.00031277,7]
[340275546,1728987034069,-151.0,0.00031277,7]
[340275547,1728987034079,-151.0,0.00031277,7]
[340275548,1728987034088,-151.0,0.00031277,7]
[340275549,1728987034098,-151.0,0.00031277,7]
[340275550,1728987034108,-151.0,0.00031277,7]
[340275551,1728987034117,-261.66948,0.00031277,7]
[340275552,1728987034127,-261.66948,0.00031277,7]
[340275553,1728987034138,-261.66948,0.00031277,7]
[340275554,1728987034149,-261.66948,0.00031277,7]
[340275555,1728987034159,-151.0,0.00031277,7]
[340275556,1728987034169,-261.66948,0.00031277,7]
[340275557,1728987034178,-151.0,0.00031277,7]
[340275558,1728987034188,-261.66948,0.00031277,7]
[340275559,1728987034197,-246.063709,0.00031277,7]
[340275560,1728987034208,-151.0,0.00031277,7]
[340275561,1728987034218,-151.0,0.00031277,7]
[340275562,1728987034228,-151.0,0.00031277,7]
[340275563,1728987034238,-177.155304,0.00031277,7]
[340275564,1728987034247,-694.42,0.00031404,10]
[340275565,1728987034335,-1222.34,0.00031404,10]
[340275566,1728987034345,-1018.61,0.00031404,10]
[340275567,1728987034355,-848.85,0.00031404,10]
[340275568,1728987034366,-151.0,0.00031414,7]
[340275569,1728987034375,-151.0,0.00031414,7]
[340275570,1728987034384,-151.0,0.00031414,7]
[340275571,1728987034394,-151.0,0.00031414,7]
[340275572,1728987034404,-261.66948,0.00031414,7]
[340275573,1728987034414,-261.66948,0.00031414,7]
[340275574,1728987034423,-261.66948,0.00031414,7]
[340275575,1728987034432,-261.66948,0.00031414,7]
[340275576,1728987034442,-18091.3691561,0.00031414,4]
[340275577,1728987034452,-59270.1277945,0.00031414,4]
[340275578,1728987034461,-2000.0,0.00031423,2]
[340275579,1728987034471,-228.286488,0.00031424,7]
[340275580,1728987034481,-228.286488,0.00031424,7]
[340275581,1728987034491,-151.0,0.00031424,7]
[340275582,1728987034501,-1000.0,0.00031424,28]
[340275583,1728987034511,-1000.0,0.00031424,28]
[340275584,1728987034520,-1000.0,0.00031424,28]
[340275585,1728987034530,-1000.0,0.00031424,28]
[340275586,1728987034539,-1000.0,0.00031424,28]
[340275587,1728987034549,-1000.0,0.00031424,28]
[340275588,1728987034560,-1000.0,0.00031424,28]
[340275589,1728987034571,-1000.0,0.00031424,28]
[340275590,1728987034581,-1098.21108144,0.00031424,28]
[340275591,1728987034592,-180.795581,0.00031424,7]
[340275592,1728987034602,-180.795581,0.00031424,7]
[340275593,1728987034612,-154.49721,0.00031424,7]
[340275594,1728987034621,-154.49721,0.00031424,7]
[340275595,1728987034631,-151.0,0.00031424,7]
[340275596,1728987034641,-151.0,0.00031424,7]
[340275597,1728987034651,-648.832557,0.00031424,7]
[340275598,1728987034661,-648.832557,0.00031424,7]
[340275599,1728987034670,-271.265248,0.00031424,7]
[340275600,1728987034680,-151.0,0.00031424,7]
[340275601,1728987034689,-151.0,0.00031424,7]
[340275602,1728987034699,-151.0,0.00031424,7]
[340275603,1728987034709,-2050.236124,0.00031424,7]
[340275604,1728987034718,-151.0,0.00031424,7]
[340275605,1728987034728,-2050.236124,0.00031424,7]
[340275606,1728987034738,-177.049057,0.00031424,7]